bitfinex/quotes_SOLUSD_20240621
["timestamp","ask_amount","ask_price","bid_price","bid_amount"]
[1718949996688,9.52,133.09,133.04,9.52]
[1718949996886,9.52,133.09,133.05,0.17]
[1718949999094,9.52,133.09,133.04,9.69]
[1718949999302,6.59,133.08,133.04,9.52]
[1718949999891,16.11,133.08,133.03,9.52]
[1718950000397,9.52,133.07,132.98,15.2534]
[1718950000603,25.3491,133.06,132.99,20.0]
[1718950000801,15.8291,133.06,133.01,9.52]
[1718950000997,15.8291,133.06,133.03,9.52]
[1718950001378,15.8291,133.06,133.02,9.52]
[1718950004195,15.8291,133.06,132.98,67.81]
[1718950004516,25.3491,133.06,133.01,9.52]
[1718950004885,15.8291,133.06,133.02,9.52]
[1718950006092,15.8291,133.06,133.01,10.03]
[1718950006694,15.8291,133.06,133.01,9.69]
[1718950010715,25.3491,133.06,133.01,0.17]
[1718950010905,25.3491,133.06,133.01,9.52]
[1718950011608,9.52,133.05,133.0,0.17]
[1718950011802,9.52,133.05,133.0,9.52]
[1718950012003,9.52,133.05,132.99,9.52]
[1718950012592,9.52,133.05,133.0,9.52]
[1718950012791,25.3491,133.06,133.01,9.52]
[1718950013302,25.3491,133.06,133.0,9.52]
[1718950014806,9.52,133.05,133.0,9.52]
[1718950015504,6.2547,133.04,132.97,20.0]
[1718950015709,6.2547,133.04,132.98,9.52]
[1718950015710,9.52,133.03,132.98,9.52]
[1718950017324,6.2547,133.04,132.99,0.17]
[1718950017618,6.2547,133.04,133.0,9.52]
[1718950018914,6.2547,133.04,133.01,9.52]
[1718950019221,6.2547,133.04,133.01,9.69]
[1718950019399,6.2547,133.04,133.01,9.52]
[1718950019593,6.2547,133.04,133.0,0.17]
[1718950019803,6.2547,133.04,133.0,9.52]
[1718950020021,15.7747,133.04,132.99,9.69]
[1718950020216,15.7747,133.04,132.99,9.52]
[1718950020421,9.52,133.03,132.98,29.52]
[1718950020924,15.7747,133.04,132.98,29.52]
[1718950021620,9.52,133.03,132.98,29.52]
[1718950021911,15.7747,133.04,132.99,9.52]
[1718950022121,15.7747,133.04,132.99,9.69]
[1718950022902,6.2547,133.04,133.0,9.52]
[1718950024902,6.2547,133.04,132.99,9.69]
[1718950025104,15.9346,133.03,132.93,40.62295882]
[1718950025312,9.52,133.01,132.94,20.0]
[1718950025719,9.52,133.01,132.95,9.52]
[1718950026401,9.52,133.01,132.94,20.0]
[1718950026600,9.52,133.01,132.95,9.69]
[1718950027518,9.52,133.01,132.96,9.52]
[1718950029520,9.52,133.01,132.95,0.17]
[1718950029828,9.52,133.01,132.96,9.52]
[1718950032425,15.9346,133.03,132.96,9.52]
[1718950032625,15.9346,133.03,132.97,0.51]
[1718950032932,15.9346,133.03,133.0,9.52]
[1718950034207,16.0275,133.07,133.02,9.52]
[1718950034411,16.0275,133.07,133.01,0.51]
[1718950034610,16.0275,133.07,133.02,9.52]
[1718950034813,25.5475,133.07,133.01,10.03]
[1718950035920,25.5475,133.07,133.02,9.52]
[1718950036113,25.5475,133.07,133.03,0.17]
[1718950036502,25.5475,133.07,133.02,9.52]
[1718950036707,25.5475,133.07,133.01,0.51]
[1718950036923,25.5475,133.07,133.02,9.52]
[1718950037116,25.5475,133.07,133.01,0.51]
[1718950037316,25.5475,133.07,133.02,9.52]
[1718950039314,9.52,133.06,133.01,0.17]
[1718950039524,9.52,133.06,133.01,9.52]
[1718950039833,9.52,133.06,133.0,10.03]
[1718950040324,9.52,133.06,133.01,9.52]
[1718950040526,16.0275,133.07,133.03,9.52]
[1718950040711,16.0275,133.07,133.04,9.52]
[1718950042029,16.0275,133.07,133.02,0.17]
[1718950042231,16.0275,133.07,133.01,20.17]
[1718950042421,16.0275,133.07,133.02,29.52]
[1718950042624,16.0275,133.07,133.02,9.52]
[1718950042825,25.5475,133.07,133.02,9.52]
[1718950043916,16.0275,133.07,133.02,9.52]
[1718950044729,25.5475,133.07,133.02,9.52]
[1718950048813,16.0275,133.07,133.02,9.52]
[1718950049025,16.0275,133.07,133.04,9.52]
[1718950051742,16.0275,133.07,133.03,9.69]
[1718950055845,16.0275,133.07,133.04,0.17]
[1718950056140,6.554,133.08,133.04,0.17]
[1718950056141,6.554,133.08,133.06,9.52]
[1718950056332,6.554,133.08,133.07,9.52]
[1718950056635,15.3416,133.1,133.07,9.52]
[1718950058423,6.3878,133.11,133.09,9.52]
[1718950059951,6.3878,133.11,133.08,9.69]
[1718950060323,6.3878,133.11,133.08,0.17]
[1718950060825,6.3878,133.11,133.08,20.17]
[1718950063835,6.3878,133.11,133.08,29.69]
[1718950064048,6.3878,133.11,133.08,20.17]
[1718950065059,6.3878,133.11,133.08,29.69]
[1718950065222,6.3878,133.11,133.08,9.69]
[1718950068351,6.3878,133.11,133.08,0.17]
[1718950068647,6.3878,133.11,133.07,10.03]
[1718950068851,6.3878,133.11,133.08,20.0]
[1718950069427,15.2284,133.1,133.02,15.8075]
[1718950069628,9.52,133.07,132.99,61.2753]
[1718950069827,9.52,133.07,133.01,9.52]
[1718950070247,9.52,133.07,132.99,61.2753]
[1718950070444,9.52,133.07,132.99,83.8653]
[1718950070750,9.52,133.07,133.01,9.52]
[1718950071053,9.52,133.07,133.02,9.52]
[1718950071547,9.52,133.08,133.03,29.69]
[1718950072149,15.2284,133.1,133.03,29.69]
[1718950072385,9.52,133.08,133.03,29.69]
[1718950072544,15.2284,133.1,133.03,42.76]
[1718950072738,15.2284,133.1,133.07,9.52]
[1718950072934,15.2284,133.1,133.06,9.52]
[1718950073850,15.2284,133.1,133.07,20.0]
[1718950076240,15.2284,133.1,133.06,20.0]
[1718950078145,15.2284,133.1,133.06,9.52]
[1718950078355,15.2284,133.1,133.07,20.0]
[1718950081963,15.2284,133.1,133.07,29.52]
[1718950082960,15.2284,133.1,133.07,20.0]
[1718950083163,15.2284,133.1,133.06,20.0]
[1718950083743,24.7484,133.1,133.06,20.0]
[1718950083939,9.52,133.09,133.05,20.0]
[1718950084339,24.7484,133.1,133.05,20.0]
[1718950084651,15.2284,133.1,133.05,29.52]
[1718950085380,15.2284,133.1,133.06,9.52]
[1718950085540,15.2284,133.1,133.07,20.0]
[1718950086353,15.2284,133.1,133.06,20.0]
[1718950087773,9.52,133.09,133.04,9.52]
[1718950087945,9.52,133.09,133.05,20.0]
[1718950090064,9.52,133.09,133.04,9.52]
[1718950090270,9.52,133.09,133.05,20.0]
[1718950090944,24.7484,133.1,133.05,20.0]
[1718950093569,15.2284,133.1,133.05,29.52]
[1718950093747,15.2284,133.1,133.06,9.69]
[1718950093946,15.2284,133.1,133.07,20.0]
[1718950094366,15.2284,133.1,133.05,9.52]
[1718950094565,15.2284,133.1,133.06,29.52]
[1718950094748,15.2284,133.1,133.06,9.52]
[1718950095068,15.2284,133.1,133.07,20.0]
[1718950095972,24.7484,133.1,133.07,20.0]
[1718950096166,24.7484,133.1,133.06,20.0]
[1718950096465,9.52,133.09,133.06,20.0]
[1718950096670,9.52,133.09,133.05,20.0]
[1718950099154,9.52,133.08,133.05,20.0]
[1718950099353,9.52,133.08,133.02,9.52]
[1718950099552,9.52,133.08,133.03,20.0]
[1718950099768,9.52,133.08,133.02,9.52]
[1718950099960,9.52,133.08,133.03,20.0]
[1718950101052,9.52,133.08,133.03,29.52]
[1718950101453,24.7484,133.1,133.03,20.0]
[1718950101652,24.7484,133.1,133.04,9.52]
[1718950101868,24.7484,133.1,133.05,20.0]
[1718950102955,24.7484,133.1,133.04,9.52]
[1718950103157,24.7484,133.1,133.05,20.0]
[1718950103158,9.52,133.09,133.05,20.0]
[1718950106061,15.2284,133.1,133.05,20.0]
[1718950106261,24.7484,133.1,133.05,20.0]
[1718950107876,24.7484,133.1,133.04,9.52]
[1718950108051,24.7484,133.1,133.05,20.0]
[1718950111878,9.52,133.09,133.05,20.0]
[1718950112062,9.52,133.09,133.04,20.0]
[1718950112479,15.2284,133.1,133.04,20.0]
[1718950112683,9.52,133.08,133.02,9.52]
[1718950112869,9.52,133.08,133.03,20.0]
[1718950113182,15.2284,133.1,133.03,20.0]
[1718950113183,9.52,133.07,133.03,20.0]
[1718950113386,15.5427,133.07,133.01,9.86]
[1718950113570,15.5427,133.07,133.02,20.0]
[1718950115889,15.5427,133.07,133.02,29.52]
[1718950116184,6.0227,133.07,133.02,29.52]
[1718950116393,6.0227,133.07,133.04,9.52]
[1718950116585,6.0227,133.07,133.05,20.0]
[1718950116878,24.7484,133.1,133.06,9.52]
[1718950116879,21.6169,133.1,133.06,9.52]
[1718950117081,21.6169,133.1,133.07,9.52]
[1718950117283,5.97123203,133.13,133.08,29.52]
[1718950117467,21.4434,133.14,133.08,9.52]
[1718950117671,30.9634,133.14,133.09,20.0]
[1718950117868,9.52,133.13,133.09,20.0]
[1718950118386,21.4434,133.14,133.09,20.0]
[1718950118570,30.9634,133.14,133.09,29.52]
[1718950118767,21.4434,133.14,133.1,9.52]
[1718950118967,21.4434,133.14,133.11,20.0]
[1718950122293,15.0741,133.17,133.11,29.52]
[1718950122460,24.5941,133.17,133.11,29.52]
[1718950123369,9.52,133.16,133.11,29.52]
[1718950123979,9.52,133.15,133.11,20.0]
[1718950124291,9.52,133.15,133.1,20.0]
[1718950124996,9.52,133.14,133.1,20.0]
[1718950125189,9.52,133.14,133.09,20.0]
[1718950125770,15.0741,133.17,133.09,20.0]
[1718950125975,9.52,133.13,133.09,20.0]
[1718950127473,9.52,133.14,133.09,20.0]
[1718950128072,9.52,133.14,133.09,29.52]
[1718950128788,15.0741,133.17,133.09,29.52]
[1718950128994,9.52,133.15,133.1,9.52]
[1718950129183,9.52,133.16,133.11,20.0]
[1718950129592,15.0741,133.17,133.11,20.0]
[1718950129593,9.52,133.15,133.11,20.0]
[1718950129897,9.52,133.15,133.09,9.52]
[1718950130083,9.52,133.15,133.1,20.0]
[1718950131589,9.52,133.15,133.1,29.52]
[1718950131789,9.52,133.15,133.1,9.52]
[1718950131974,15.0741,133.17,133.11,20.0]
[1718950132175,9.52,133.16,133.11,20.0]
[1718950132374,15.0741,133.17,133.11,20.0]
[1718950132595,9.52,133.16,133.11,20.0]
[1718950133479,9.52,133.15,133.11,20.0]
[1718950134100,9.52,133.14,133.09,9.52]
[1718950134299,9.52,133.14,133.1,20.0]
[1718950135389,15.0741,133.17,133.1,20.0]
[1718950135699,9.52,133.15,133.1,20.0]
[1718950138092,15.0741,133.17,133.1,20.0]
[1718950138301,9.52,133.15,133.1,20.0]
[1718950138668,15.0741,133.17,133.1,20.0]
[1718950138869,9.52,133.13,133.05,20.0]
[1718950139283,9.52,133.13,133.07,9.52]
[1718950139489,9.52,133.13,133.08,20.0]
[1718950139885,15.0741,133.17,133.08,20.0]
[1718950140086,9.52,133.1,133.0,22.3045]
[1718950140280,9.52,133.1,133.04,9.52]
[1718950140672,6.4898,133.11,133.0,60.3845]
[1718950140673,6.4898,133.11,133.0,44.9145]
[1718950140878,9.52,133.08,133.03,9.52]
[1718950141287,9.52,133.06,133.0,22.3045]
[1718950141581,9.52,133.06,133.04,20.0]
[1718950141798,9.52,133.06,133.01,29.52]
[1718950141994,9.52,133.05,133.01,20.0]
[1718950142302,9.52,133.04,132.99,9.52]
[1718950142484,9.52,133.04,133.0,20.0]
[1718950142889,9.52,133.04,132.99,9.52]
[1718950144202,9.52,133.04,133.0,20.0]
[1718950145504,9.52,133.05,133.0,29.52]
[1718950145704,9.52,133.04,133.0,20.0]
[1718950149383,7.79894676,133.08,132.98,20.51]
[1718950149600,9.52,133.05,132.99,9.52]
[1718950149803,9.52,133.05,133.0,20.17]
[1718950151082,9.52,133.04,133.0,20.0]
[1718950152580,22.03903567,133.1,133.02,9.52]
[1718950152780,9.52,133.07,133.03,20.0]
[1718950153013,22.03903567,133.1,133.03,20.0]
[1718950153185,9.52,133.08,133.03,20.0]
[1718950153386,9.52,133.07,133.03,20.0]
[1718950153816,9.52,133.06,133.01,9.52]
[1718950153994,22.03903567,133.1,133.02,20.0]
[1718950153995,9.52,133.05,133.02,20.0]
[1718950154388,9.52,133.04,133.02,20.0]
[1718950154694,9.52,133.04,133.0,20.0]
[1718950156718,22.03903567,133.1,133.0,20.0]
[1718950156890,0.17,133.09,133.01,9.52]
[1718950157082,9.52,133.05,133.02,20.0]
[1718950157288,9.52,133.05,133.0,20.0]
[1718950157883,9.52,133.04,133.0,20.0]
[1718950158484,9.52,133.04,132.99,9.52]
[1718950158693,9.52,133.04,133.0,20.0]
[1718950160309,9.52,133.03,133.0,20.0]
[1718950160509,9.52,133.02,132.98,20.0]
[1718950161108,9.52,133.02,132.97,20.0]
[1718950161898,9.52,133.02,132.97,29.52]
[1718950162085,15.9756,133.05,132.97,29.52]
[1718950162285,9.52,133.03,132.97,29.52]
[1718950162903,9.52,133.03,132.98,9.52]
[1718950163434,9.52,133.03,132.99,20.0]
[1718950165500,15.9756,133.05,132.99,20.0]
[1718950165716,9.52,133.03,132.99,20.0]
[1718950167221,15.9756,133.05,132.99,20.0]
[1718950167515,25.4956,133.05,132.99,29.52]
[1718950167819,15.9756,133.05,132.99,29.52]
[1718950168516,15.9756,133.05,132.99,20.0]
[1718950170496,15.9756,133.05,132.99,29.52]
[1718950170706,9.52,133.04,132.99,29.52]
[1718950171220,22.1312,133.09,133.0,9.52]
[1718950171394,9.52,133.06,133.01,20.0]
[1718950171598,9.52,133.04,133.01,20.0]
[1718950171896,9.52,133.04,133.0,20.0]
[1718950172512,9.52,133.05,133.0,20.0]
[1718950173013,21.6212,133.09,133.02,9.52]
[1718950173320,9.52,133.08,133.03,20.0]
[1718950174223,9.52,133.07,133.03,20.0]
[1718950174409,9.52,133.07,133.02,20.0]
[1718950175098,9.52,133.06,133.02,20.0]
[1718950175927,21.6212,133.09,133.02,20.0]
[1718950176220,9.52,133.07,133.02,20.0]
[1718950176724,21.6212,133.09,133.02,20.0]
[1718950176725,9.52,133.06,133.02,20.0]
[1718950177132,9.52,133.06,133.0,29.52]
[1718950177905,21.6212,133.09,133.0,29.52]
[1718950178199,9.52,133.06,133.0,29.52]
[1718950178393,9.52,133.06,133.01,9.52]
[1718950178598,9.52,133.06,133.02,20.0]
[1718950180823,0.34,133.08,133.02,20.0]
[1718950181029,21.6212,133.09,133.02,29.52]
[1718950181208,9.52,133.07,133.02,29.52]
[1718950182127,21.6212,133.09,133.02,29.52]
[1718950182310,9.52,133.07,133.02,29.52]
[1718950182915,9.52,133.08,133.02,29.52]
[1718950183419,9.52,133.07,133.02,29.52]
[1718950183625,9.52,133.06,133.02,20.0]
[1718950184525,21.6212,133.09,133.02,20.0]
[1718950184730,21.6212,133.09,133.02,29.52]
[1718950184907,9.52,133.07,133.02,29.52]
[1718950185110,9.52,133.08,133.02,29.52]
[1718950185310,15.0545,133.09,133.03,9.52]
[1718950185531,9.52,133.09,133.04,29.52]
[1718950185718,9.52,133.09,133.04,9.52]
[1718950186612,9.52,133.08,133.03,9.52]
[1718950186819,9.52,133.08,133.04,20.0]
[1718950187316,9.52,133.08,133.03,20.0]
[1718950188228,9.52,133.06,133.03,20.0]
[1718950188425,9.52,133.05,133.0,29.52]
[1718950188811,268.91761995,133.12,133.01,9.52]
[1718950189015,9.52,133.08,133.03,9.52]
[1718950189532,9.52,133.08,133.04,20.0]
[1718950191225,274.91217069,133.12,133.03,20.0]
[1718950191416,274.91217069,133.12,133.06,9.52]
[1718950191617,9.52,133.11,133.07,20.0]
[1718950191836,19.81217069,133.12,133.07,20.0]
[1718950192047,9.52,133.1,133.07,20.0]
[1718950192343,9.52,133.1,133.05,29.52]
[1718950192517,19.81217069,133.12,133.05,29.52]
[1718950192719,9.52,133.11,133.05,29.52]
[1718950192919,9.52,133.11,133.06,9.52]
[1718950193239,9.52,133.11,133.07,20.0]
[1718950194335,13.79787069,133.12,133.07,20.0]
[1718950194538,9.52,133.11,133.07,20.0]
[1718950195746,7.80331995,133.12,133.08,9.52]
[1718950195939,9.52,133.14,133.09,29.52]
[1718950196240,6.5824,133.15,133.09,29.52]
[1718950196544,9.52,133.14,133.09,20.0]
[1718950196720,9.52,133.14,133.08,9.52]
[1718950197037,9.52,133.13,133.09,20.0]
[1718950197422,9.52,133.13,133.08,20.0]
[1718950198932,12.64841352,133.15,133.08,20.0]
[1718950199127,9.52,133.13,133.08,29.52]
[1718950200830,9.52,133.13,133.08,20.0]
[1718950202222,9.52,133.13,133.08,29.52]
[1718950203131,9.52,133.14,133.08,29.52]
[1718950203336,15.58601352,133.15,133.08,20.0]
[1718950203547,9.52,133.15,133.09,9.52]
[1718950203753,9.52,133.14,133.1,20.0]
[1718950203917,16.5854,133.17,133.1,20.0]
[1718950204241,26.1054,133.17,133.11,9.52]
[1718950204418,26.1054,133.17,133.12,20.0]
[1718950204620,9.52,133.15,133.12,20.0]
[1718950204838,9.52,133.15,133.11,20.0]
[1718950205635,9.52,133.13,133.11,20.0]
[1718950205819,9.52,133.13,133.09,20.0]
[1718950206441,9.52,133.14,133.09,29.52]
[1718950206630,22.7721893,133.17,133.1,9.52]
[1718950206944,9.52,133.15,133.11,20.0]
[1718950207850,9.52,133.14,133.11,20.0]
[1718950208056,9.52,133.14,133.1,20.0]
[1718950208848,22.7721893,133.17,133.09,29.52]
[1718950209043,6.1867893,133.17,133.09,20.0]
[1718950209348,9.52,133.17,133.11,9.52]
[1718950209844,9.52,133.19,133.13,9.52]
[1718950210064,271.2077,133.24,133.16,9.52]
[1718950210225,9.52,133.22,133.16,9.52]
[1718950210420,271.2077,133.24,133.16,9.52]
[1718950210647,277.29656151,133.24,133.16,9.52]
[1718950210853,9.52,133.22,133.17,29.52]
[1718950211157,277.29656151,133.24,133.17,29.52]
[1718950211340,9.52,133.22,133.17,29.52]
[1718950212040,277.29656151,133.24,133.17,29.52]
[1718950212244,9.52,133.22,133.17,29.52]
[1718950212936,9.52,133.22,133.17,20.0]
[1718950214348,9.52,133.2,133.17,20.0]
[1718950214551,298.2213683,133.24,133.15,20.0]
[1718950214552,9.52,133.19,133.15,20.0]
[1718950214751,9.52,133.18,133.15,20.0]
[1718950214978,9.52,133.18,133.13,9.52]
[1718950214979,9.52,133.19,133.14,20.0]
[1718950216251,285.11866201,133.24,133.14,20.0]
[1718950216551,9.52,133.19,133.14,29.52]
[1718950216947,0.17,133.23,133.16,9.52]
[1718950217138,9.52,133.22,133.17,9.52]
[1718950217827,9.52,133.22,133.16,9.52]
[1718950218040,9.52,133.22,133.17,29.52]
[1718950218233,262.9221005,133.24,133.19,9.52]
[1718950218457,264.62,133.24,133.19,9.52]
[1718950218847,264.62,133.24,133.18,9.52]
[1718950219046,9.52,133.23,133.19,20.0]
[1718950220437,6.2665,133.25,133.19,20.0]
[1718950220642,9.52,133.24,133.19,20.0]
[1718950220854,9.52,133.22,133.19,20.0]
[1718950221054,7.82026595,133.27,133.19,16.5468]
[1718950221261,9.52,133.31,133.26,9.52]
[1718950221443,255.1,133.33,133.27,9.52]
[1718950221746,9.52,133.32,133.27,9.52]
[1718950221956,9.52,133.31,133.26,9.52]
[1718950222148,9.52,133.31,133.27,20.0]
[1718950222345,255.1,133.33,133.27,29.52]
[1718950222546,264.62,133.33,133.27,29.52]
[1718950223360,9.52,133.29,133.23,25.5402]
[1718950223657,262.9167291,133.33,133.24,20.0]
[1718950223868,0.17,133.32,133.24,20.0]
[1718950224048,0.34,133.32,133.24,20.0]
[1718950224249,45.34,133.32,133.24,20.0]
[1718950224460,0.34,133.32,133.24,20.0]
[1718950224672,45.34,133.32,133.24,20.0]
[1718950224841,0.17,133.31,133.24,20.0]
[1718950225041,0.34,133.31,133.24,20.0]
[1718950225367,262.9167291,133.33,133.24,20.0]
[1718950226354,0.17,133.32,133.24,20.0]
[1718950226541,0.51,133.32,133.24,20.0]
[1718950227449,45.51,133.32,133.24,20.0]
[1718950229075,0.51,133.32,133.24,20.0]
[1718950231173,45.51,133.32,133.24,20.0]
[1718950231469,45.51,133.32,133.22,6.2191]
[1718950231470,50.9455,133.31,133.2,15.2189]
[1718950231779,45.51,133.3,133.21,20.0]
[1718950232369,0.51,133.3,133.21,20.0]
[1718950232558,45.51,133.3,133.21,20.0]
[1718950232761,0.51,133.3,133.21,20.0]
[1718950233355,45.51,133.3,133.21,20.0]
[1718950235471,30.34189941,133.31,133.21,20.0]
[1718950235681,22.4955,133.31,133.22,0.51]
[1718950238052,22.4955,133.31,133.21,20.0]
[1718950238359,0.34,133.3,133.21,20.0]
[1718950239355,22.4955,133.31,133.22,0.17]
[1718950239554,22.4955,133.31,133.22,0.51]
[1718950240178,22.4955,133.31,133.22,2.84056435]
[1718950240387,22.4955,133.31,133.21,20.0]
[1718950240684,0.34,133.3,133.21,20.0]
[1718950242778,22.4955,133.31,133.21,20.0]
[1718950242999,22.4955,133.31,133.22,0.34]
[1718950245380,262.94587773,133.33,133.22,0.34]
[1718950245561,255.1,133.33,133.23,0.17]
[1718950246986,16.8358,133.34,133.23,0.17]
[1718950247288,0.34,133.33,133.23,0.17]
[1718950250269,16.4958,133.34,133.23,0.17]
[1718950251768,16.4958,133.34,133.24,22.0822]
[1718950251969,16.4958,133.34,133.25,20.51]
[1718950252567,16.4958,133.34,133.25,20.0]
[1718950252769,45.51,133.33,133.25,20.0]
[1718950253187,45.51,133.33,133.22,20.0]
[1718950254491,0.51,133.33,133.23,0.17]
[1718950254795,0.51,133.33,133.23,0.34]
[1718950256408,0.51,133.33,133.23,0.17]
[1718950256577,45.51,133.33,133.22,20.17]
[1718950258781,0.51,133.33,133.23,0.51]
[1718950260568,0.51,133.33,133.23,0.17]
[1718950260877,0.51,133.33,133.22,20.0]
[1718950260878,45.51,133.33,133.22,20.0]
[1718950262578,73.96,133.33,133.22,20.0]
[1718950262893,20.0,133.32,133.22,20.0]
[1718950263189,51.9365,133.31,133.22,20.0]
[1718950263391,15.3776,133.3,133.21,16.0832]
[1718950263573,45.51,133.29,133.21,16.0832]
[1718950264995,0.34,133.29,133.21,16.0832]
[1718950265176,9.67730208,133.31,133.21,16.0832]
[1718950265376,0.51,133.3,133.22,20.0]
[1718950265591,0.34,133.3,133.22,20.0]
[1718950265880,20.0,133.33,133.22,20.0]
[1718950266288,23.25011823,133.33,133.22,20.0]
[1718950266500,0.17,133.32,133.22,20.0]
[1718950266678,0.17,133.32,133.23,6.2191]
[1718950266879,0.17,133.32,133.24,20.0]
[1718950267085,0.17,133.33,133.24,20.0]
[1718950268004,0.34,133.33,133.24,20.0]
[1718950268178,0.17,133.32,133.24,20.0]
[1718950271104,0.17,133.32,133.25,15.3591]
[1718950271486,6.0204639,133.35,133.25,15.3591]
[1718950271696,53.79367082,133.37,133.26,20.0]
[1718950271987,61.63935603,133.37,133.26,20.0]
[1718950272516,61.63895667,133.37,133.26,20.0]
[1718950272804,45.0,133.36,133.26,20.0]
[1718950273113,48.41931011,133.36,133.26,20.0]
[1718950273584,0.34,133.35,133.26,20.0]
[1718950273780,0.17,133.34,133.26,20.0]
[1718950273986,28.62,133.34,133.26,20.0]
[1718950274184,0.34,133.33,133.25,15.3591]
[1718950274385,0.17,133.32,133.25,15.3591]
[1718950277978,0.34,133.33,133.26,20.0]
[1718950278381,3.24978096,133.36,133.26,20.0]
[1718950278683,67.66226611,133.37,133.27,6.2191]
[1718950278887,17.95076611,133.37,133.29,15.6101]
[1718950279191,4.08174546,133.37,133.29,15.6101]
[1718950280509,0.34,133.36,133.29,15.6101]
[1718950280795,0.34,133.36,133.3,20.0]
[1718950281788,4.08165809,133.37,133.3,20.0]
[1718950282002,4.08165705,133.37,133.3,20.0]
[1718950282818,0.8323195,133.37,133.3,20.0]
[1718950285726,0.8323195,133.37,133.31,6.1633]
[1718950287438,0.8323195,133.37,133.33,16.1501]
[1718950287809,0.8323195,133.37,133.34,20.0]
[1718950292732,0.8323195,133.37,133.35,0.17]
[1718950292935,0.8323195,133.37,133.34,20.0]
[1718950296044,0.8323195,133.37,133.35,6.7291]
[1718950296330,0.8323195,133.37,133.36,36.3027]
[1718950296515,0.8323195,133.37,133.36,36.8127]
[1718950296711,262.9137087,133.46,133.36,36.8127]
[1718950296914,7.8137087,133.46,133.37,0.51]
[1718950297827,24.0565087,133.46,133.36,36.3027]
[1718950298031,30.3144087,133.46,133.36,36.3027]
[1718950298535,24.0565087,133.46,133.36,36.3027]
[1718950298828,0.51,133.45,133.36,36.3027]
[1718950299639,7.8137087,133.46,133.36,36.3027]
[1718950300219,0.17,133.45,133.36,36.3027]
[1718950301136,0.51,133.45,133.36,36.3027]
[1718950302930,8.32636453,133.45,133.36,36.3027]
[1718950303127,28.45,133.44,133.36,36.3027]
[1718950303433,0.34,133.43,133.36,16.3027]